[Event "ARM-ch Rapid 2019"]
[Site "Yerevan"]
[Date "2019.01.22"]
[Round "5.1"]
[White "Chibukhchian, Artur"]
[Black "Hovhannisyan, Robert"]
[Result "0-1"]
[WhiteElo "2384"]
[BlackElo "2637"]
[PlyCount "88"]
[EventDate "2019.01.22"]
[EventType "tourn"]
[EventCountry "ARM"]
[TimeControl "40/5400+30:1800+30"]
[WhiteClock "0:02:56"]
[BlackClock "0:00:23"]

1. d4 {[%emt 1:15:33]} d5 {[%emt 1:15:12]} 2. c4 {[%emt 0:00:21]} c6 {[%emt 0:00:21]} 3. cxd5 {[%emt 0:00:28]} cxd5 {[%emt 0:00:21]} 4. Nc3 {[%emt 0:00:21]} Nf6 {[%emt 0:00:22]} 5. Nf3 {[%emt 0:00:22]} Nc6 {[%emt 0:00:23]} 6. Bf4 {[%emt 0:00:22]} Bf5 {[%emt 0:00:22]} 7. e3 {[%emt 0:00:22]} e6 {[%emt 0:00:22]} 8. Bd3 {[%emt 0:00:48]} Bxd3 {[%emt 0:00:22]} 9. Qxd3 {[%emt 0:00:21]} Be7 {[%emt 0:00:24]} 10. O-O {[%emt 0:00:23]} O-O {[%emt 0:00:23]} 11. Rfc1 {[%emt 0:01:37]} a6 {[%emt 0:00:50]} 12. Ne5 {[%emt 0:00:29]} Nxe5 {[%emt 0:00:57]} 13. Bxe5 {[%emt 0:00:23]} Nd7 {[%emt 0:00:36]} 14. Bf4 {[%emt 0:00:37]} Nb6 {[%emt 0:01:15]} 15. Nb1 {[%emt 0:05:22]} Rc8 {[%emt 0:02:17]} 16. Nd2 {[%emt 0:00:21]} Qd7 {[%emt 0:01:16]} 17. Qb3 {[%emt 0:01:30]} Rc6 {[%emt 0:00:37]} 18. Rc3 {[%emt 0:01:22]} a5 {[%emt 0:02:00]} 19. Rac1 {[%emt 0:02:09]} a4 {[%emt 0:00:35]} 20. Qc2 {[%emt 0:02:28]} Rfc8 {[%emt 0:01:23]} 21. Qd3 {[%emt 0:00:21]} Bb4 {[%emt 0:01:23]} 22. Rxc6 {[%emt 0:00:26]} Rxc6 {[%emt 0:00:22]} 23. Rb1 {[%emt 0:02:47]} Bxd2 {[%emt 0:02:23]} 24. Qxd2 {[%emt 0:00:21]} Nc4 {[%emt 0:00:21]} 25. Qd1 {[%emt 0:02:21]} Qc8 {[%emt 0:00:44]} 26. e4 {[%emt 0:00:52]} dxe4 {[%emt 0:00:38]} 27. Qxa4 {[%emt 0:00:28]} Nxb2 {[%emt 0:00:50]} 28. Qb5 {[%emt 0:00:34]} Nd3 {[%emt 0:00:38]} 29. Qxb7 {[%emt 0:00:28]} Qxb7 {[%emt 0:01:55]} 30. Rxb7 {[%emt 0:00:21]} h5 {[%emt 0:00:25]} 31. Be3 {[%emt 0:00:35]} Ra6 {[%emt 0:00:47]} 32. h4 {[%emt 0:00:32]} Rxa2 {[%emt 0:00:27]} 33. Rb5 {[%emt 0:00:27]} f5 {[%emt 0:01:15]} 34. d5 {[%emt 0:00:34]} f4 {[%emt 0:01:03]} 35. dxe6 {[%emt 0:00:32]} fxe3 {[%emt 0:00:42]} 36. Rb8+ {[%emt 0:00:21]} Kh7 {[%emt 0:00:21]} 37. e7 {[%emt 0:00:22]} exf2+ {[%emt 0:01:08]} 38. Kh2 {[%emt 0:00:24]} f1=Q {[%emt 0:00:32]} 39. Rh8+ {[%emt 0:00:22]} Kxh8 {[%emt 0:00:29]} 40. e8=Q+ {[%emt 0:00:23]} Kh7 {[%emt 0:00:22]} 41. Qxe4+ {[%emt 0:31:09]} Kg8 {[%emt 0:30:51]} 42. Qe8+ {[%emt 0:00:30]} Qf8 {[%emt 0:00:23]} 43. Qe6+ {[%emt 0:00:23]} Qf7 {[%emt 0:00:22]} 44. Qc8+ {[%emt 0:00:25]} Kh7 {[%emt 0:00:25]} 0-1

[Event "ARM-ch Rapid 2019"]
[Site "Yerevan"]
[Date "2019.01.22"]
[Round "5.2"]
[White "Andriasian, Zaven"]
[Black "Martirosyan, Haik M."]
[Result "1/2-1/2"]
[WhiteElo "2604"]
[BlackElo "2607"]
[Annotator "RC"]
[PlyCount "27"]
[EventDate "2019.01.22"]
[EventType "tourn"]
[EventCountry "ARM"]
[TimeControl "40/5400+30:1800+30"]
[WhiteClock "0:15:39"]
[BlackClock "0:15:24"]

1. c4 {[%emt 1:15:13]} c6 {[%emt 1:15:22]} 2. d4 {[%emt 0:00:23]} d5 {[%emt 0:00:24]} 3. Nc3 {[%emt 0:00:21]} Nf6 {[%emt 0:00:24]} 4. e3 {[%emt 0:00:22]} g6 {[%emt 0:00:35]} 5. Nf3 {[%emt 0:00:23]} Bg7 {[%emt 0:00:22]} 6. Be2 {[%emt 0:00:21]} O-O {[%emt 0:00:23]} 7. O-O {[%emt 0:00:23]} b6 {[%emt 0:00:30]} 8. b3 {[%emt 0:00:31]} Bb7 {[%emt 0:00:24]} 9. a4 {[%emt 0:00:34]} a5 {[%emt 0:00:27]} 10. cxd5 {[%emt 0:00:29]} Nxd5 {[%emt 0:00:38]} 11. Bb2 {[%emt 0:00:27]} c5 {[%emt 0:00:25]} 12. Rc1 {[%emt 0:00:45]} cxd4 {[%emt 0:00:34]} 13. Nxd4 {[%emt 0:01:00]} Nxc3 {[%emt 0:00:23]} 14. Bxc3 {[%emt 0:00:24]} 1/2-1/2

[Event "ARM-ch Rapid 2019"]
[Site "Yerevan"]
[Date "2019.01.22"]
[Round "5.4"]
[White "Sargsyan, Shant"]
[Black "Hayrapetyan, Arman Ash."]
[Result "1-0"]
[WhiteElo "2486"]
[BlackElo "2375"]
[PlyCount "51"]
[EventDate "2019.01.22"]
[EventType "tourn"]
[EventCountry "ARM"]
[TimeControl "40/5400+30:1800+30"]
[WhiteClock "0:01:59"]
[BlackClock "0:05:52"]

1. d4 {[%emt 1:15:25]} d6 {[%emt 1:15:13]} 2. e4 {[%emt 0:00:30]} e5 {[%emt 0:00:40]} 3. Nf3 {[%emt 0:00:23]} exd4 {[%emt 0:01:23]} 4. Nxd4 {[%emt 0:00:22]} Nf6 {[%emt 0:00:21]} 5. Nc3 {[%emt 0:00:21]} g6 {[%emt 0:00:33]} 6. Bg5 {[%emt 0:00:44]} c6 {[%emt 0:00:47]} 7. Qd2 {[%emt 0:00:36]} h6 {[%emt 0:00:31]} 8. Bf4 {[%emt 0:00:32]} g5 {[%emt 0:00:47]} 9. Bg3 {[%emt 0:00:31]} Nh5 {[%emt 0:00:24]} 10. O-O-O {[%emt 0:00:34]} Bg7 {[%emt 0:00:36]} 11. Be2 {[%emt 0:00:47]} Nxg3 {[%emt 0:00:22]} 12. hxg3 {[%emt 0:00:20]} Qf6 {[%emt 0:01:11]} 13. f4 {[%emt 0:00:27]} a5 {[%emt 0:01:19]} 14. Nf3 {[%emt 0:01:13]} Bg4 {[%emt 0:06:15]} 15. e5 {[%emt 0:01:45]} dxe5 {[%emt 0:00:30]} 16. Ne4 {[%emt 0:00:58]} Qe7 {[%emt 0:00:29]} 17. Nd6+ {[%emt 0:00:32]} Kf8 {[%emt 0:00:20]} 18. Nxe5 {[%emt 0:00:27]} Be6 {[%emt 0:03:14]} 19. Bh5 {[%emt 0:00:57]} Nd7 {[%emt 0:01:18]} 20. Nexf7 {[%emt 0:01:21]} Qf6 {[%emt 0:01:10]} 21. c3 {[%emt 0:00:41]} g4 {[%emt 0:00:22]} 22. Nxh8 {[%emt 0:00:32]} Bxh8 {[%emt 0:00:41]} 23. Bf7 {[%emt 0:01:13]} Nc5 {[%emt 0:00:44]} 24. Bxe6 {[%emt 0:00:25]} Qxe6 {[%emt 0:00:22]} 25. Rh5 {[%emt 0:01:19]} b6 {[%emt 0:00:59]} 26. Nf5 {[%emt 0:04:13]} 1-0

[Event "ARM-ch Rapid 2019"]
[Site "Yerevan"]
[Date "2019.01.22"]
[Round "5.5"]
[White "Hakobyan, Aram"]
[Black "Pashikian, Arman"]
[Result "1-0"]
[WhiteElo "2545"]
[BlackElo "2599"]
[Annotator "RC"]
[PlyCount "99"]
[EventDate "2019.01.22"]
[EventType "tourn"]
[EventCountry "ARM"]
[TimeControl "40/5400+30:1800+30"]
[WhiteClock "0:00:21"]
[BlackClock "0:00:42"]

1. e4 {[%emt 1:15:14]} e5 {[%emt 1:15:11]} 2. Nf3 {[%emt 0:00:21]} Nc6 {[%emt 0:00:20]} 3. Bb5 {[%emt 0:00:21]} Nf6 {[%emt 0:00:22]} 4. O-O {[%emt 0:00:23]} Nxe4 {[%emt 0:00:22]} 5. Re1 {[%emt 0:00:26]} Nd6 {[%emt 0:00:21]} 6. Nxe5 {[%emt 0:00:22]} Be7 {[%emt 0:00:21]} 7. Bf1 {[%emt 0:00:22]} Nf5 {[%emt 0:00:22]} 8. Nf3 {[%emt 0:00:21]} d5 {[%emt 0:00:22]} 9. d4 {[%emt 0:00:21]} O-O {[%emt 0:00:23]} 10. c3 {[%emt 0:00:21]} Re8 {[%emt 0:00:22]} 11. Qb3 {[%emt 0:00:20]} a6 {[%emt 0:03:07]} 12. Bf4 {[%emt 0:00:37]} b6 {[%emt 0:01:11]} 13. Nbd2 {[%emt 0:01:05]} Be6 {[%emt 0:00:22]} 14. Bd3 {[%emt 0:00:22]} Bd6 {[%emt 0:01:10]} 15. Bxf5 {[%emt 0:02:53]} Bxf4 {[%emt 0:00:22]} 16. Bxe6 {[%emt 0:00:24]} Rxe6 {[%emt 0:01:40]} 17. Rxe6 {[%emt 0:00:23]} fxe6 {[%emt 0:00:21]} 18. Re1 {[%emt 0:00:50]} Qd6 {[%emt 0:00:28]} 19. Qd1 {[%emt 0:01:55]} e5 {[%emt 0:02:02]} 20. dxe5 {[%emt 0:03:18]} Nxe5 {[%emt 0:03:40]} 21. g3 {[%emt 0:00:32]} Nxf3+ {[%emt 0:00:52]} 22. Nxf3 {[%emt 0:00:24]} Bh6 {[%emt 0:00:28]} 23. Re5 {[%emt 0:01:04]} Rd8 {[%emt 0:02:33]} 24. Qe2 {[%emt 0:00:29]} g6 {[%emt 0:00:22]} 25. Re6 {[%emt 0:00:38]} Qd7 {[%emt 0:01:15]} 26. Nd4 {[%emt 0:03:43]} Bf8 {[%emt 0:00:32]} 27. Nc6 {[%emt 0:00:52]} Ra8 {[%emt 0:00:41]} 28. Qg4 {[%emt 0:01:49]} Qf7 {[%emt 0:02:55]} 29. Ne5 {[%emt 0:01:13]} Qf5 {[%emt 0:00:21]} 30. Qxf5 {[%emt 0:00:28]} gxf5 {[%emt 0:00:21]} 31. Rf6 {[%emt 0:00:30]} Rd8 {[%emt 0:01:04]} 32. Nd3 {[%emt 0:02:16]} Bg7 {[%emt 0:01:33]} 33. Rxf5 {[%emt 0:00:24]} c5 {[%emt 0:00:21]} 34. Kf1 {[%emt 0:00:43]} c4 {[%emt 0:00:21]} 35. Nf4 {[%emt 0:00:56]} d4 {[%emt 0:00:21]} 36. cxd4 {[%emt 0:00:59]} Rxd4 {[%emt 0:00:49]} 37. Rg5 {[%emt 0:00:25]} Rd2 {[%emt 0:00:37]} 38. Nh5 {[%emt 0:00:38]} Rxb2 {[%emt 0:00:25]} 39. Rxg7+ {[%emt 0:00:21]} Kf8 {[%emt 0:00:22]} 40. Rc7 {[%emt 0:00:22]} b5 {[%emt 0:00:22]} 41. a4 {[%emt 0:30:38]} Rc2 {[%emt 0:30:21]} 42. axb5 {[%emt 0:00:39]} axb5 {[%emt 0:00:21]} 43. Rb7 {[%emt 0:00:24]} Rb2 {[%emt 0:00:21]} 44. Nf4 {[%emt 0:00:28]} b4 {[%emt 0:00:34]} 45. Nd5 {[%emt 0:00:39]} b3 {[%emt 0:01:08]} 46. Rb4 {[%emt 0:00:28]} Rd2 {[%emt 0:00:36]} 47. Nc3 {[%emt 0:00:27]} b2 {[%emt 0:00:33]} 48. Rxc4 {[%emt 0:00:28]} Rc2 {[%emt 0:00:29]} 49. Rb4 {[%emt 0:00:21]} Rxc3 {[%emt 0:00:22]} 50. Rxb2 {[%emt 0:00:21]} 1-0

[Event "ARM-ch Rapid 2019"]
[Site "Yerevan"]
[Date "2019.01.22"]
[Round "5.7"]
[White "Vardanian, Haik V."]
[Black "Yegiazarian, Arsen"]
[Result "0-1"]
[WhiteElo "2234"]
[BlackElo "2399"]
[PlyCount "101"]
[EventDate "2019.01.22"]
[EventType "tourn"]
[EventCountry "ARM"]
[TimeControl "40/5400+30:1800+30"]
[WhiteClock "0:00:53"]
[BlackClock "0:00:15"]

1. e4 {[%emt 1:15:13]} e5 {[%emt 1:15:23]} 2. Nf3 {[%emt 0:00:25]} Nc6 {[%emt 0:00:21]} 3. Bb5 {[%emt 0:00:22]} a6 {[%emt 0:00:22]} 4. Ba4 {[%emt 0:00:49]} Nf6 {[%emt 0:00:23]} 5. O-O {[%emt 0:00:22]} Be7 {[%emt 0:00:22]} 6. Re1 {[%emt 0:00:23]} b5 {[%emt 0:00:22]} 7. Bb3 {[%emt 0:00:22]} d6 {[%emt 0:00:21]} 8. c3 {[%emt 0:00:21]} O-O {[%emt 0:00:23]} 9. h3 {[%emt 0:00:22]} Na5 {[%emt 0:00:24]} 10. Bc2 {[%emt 0:00:23]} c5 {[%emt 0:00:21]} 11. d4 {[%emt 0:00:22]} Nd7 {[%emt 0:00:22]} 12. Nbd2 {[%emt 0:00:31]} exd4 {[%emt 0:00:36]} 13. cxd4 {[%emt 0:00:23]} Nc6 {[%emt 0:00:23]} 14. Nf1 {[%emt 0:01:20]} cxd4 {[%emt 0:02:05]} 15. Nxd4 {[%emt 0:00:26]} Nxd4 {[%emt 0:00:23]} 16. Qxd4 {[%emt 0:00:22]} Nc5 {[%emt 0:00:38]} 17. Rd1 {[%emt 0:01:16]} Bb7 {[%emt 0:02:05]} 18. Ng3 {[%emt 0:00:59]} Bf6 {[%emt 0:01:59]} 19. Qxd6 {[%emt 0:01:05]} Qxd6 {[%emt 0:00:27]} 20. Rxd6 {[%emt 0:00:21]} Rac8 {[%emt 0:00:55]} 21. Bb3 {[%emt 0:03:43]} Be5 {[%emt 0:03:25]} 22. Rd1 {[%emt 0:00:22]} Nxb3 {[%emt 0:01:18]} 23. axb3 {[%emt 0:00:22]} Rc2 {[%emt 0:00:56]} 24. Be3 {[%emt 0:02:16]} Rxb2 {[%emt 0:02:12]} 25. Bd4 {[%emt 0:03:13]} Bxd4 {[%emt 0:00:26]} 26. Rxd4 {[%emt 0:00:21]} Rxb3 {[%emt 0:00:27]} 27. Nf5 {[%emt 0:00:23]} g6 {[%emt 0:01:29]} 28. Nd6 {[%emt 0:01:06]} Rd8 {[%emt 0:00:58]} 29. e5 {[%emt 0:01:08]} b4 {[%emt 0:02:42]} 30. Rc4 {[%emt 0:03:13]} Bd5 {[%emt 0:00:39]} 31. Rc5 {[%emt 0:01:04]} Be6 {[%emt 0:00:51]} 32. Rxa6 {[%emt 0:00:27]} Rb1+ {[%emt 0:00:35]} 33. Kh2 {[%emt 0:00:21]} Rb8 {[%emt 0:01:09]} 34. Rb5 {[%emt 0:00:57]} Rxb5 {[%emt 0:00:22]} 35. Nxb5 {[%emt 0:00:21]} b3 {[%emt 0:00:36]} 36. Nd6 {[%emt 0:00:24]} Re1 {[%emt 0:00:36]} 37. Rb6 {[%emt 0:00:59]} Rxe5 {[%emt 0:00:28]} 38. Kg3 {[%emt 0:00:40]} Kf8 {[%emt 0:00:36]} 39. Nb5 {[%emt 0:00:45]} Rg5+ {[%emt 0:00:31]} 40. Kh2 {[%emt 0:00:33]} Bd5 {[%emt 0:00:36]} 41. f3 {[%emt 0:30:37]} Re5 {[%emt 0:30:25]} 42. Nd4 {[%emt 0:00:41]} Re3 {[%emt 0:00:23]} 43. Kg3 {[%emt 0:00:27]} Rd3 {[%emt 0:00:33]} 44. Ne2 {[%emt 0:00:24]} Rd2 {[%emt 0:00:24]} 45. Nc3 {[%emt 0:00:50]} Be6 {[%emt 0:00:24]} 46. Ne4 {[%emt 0:00:22]} Rc2 {[%emt 0:00:25]} 47. Ng5 {[%emt 0:00:22]} Bc4 {[%emt 0:00:30]} 48. Nxh7+ {[%emt 0:01:10]} Kg7 {[%emt 0:00:22]} 49. Nf6 {[%emt 0:00:22]} b2 {[%emt 0:00:42]} 50. Kf4 {[%emt 0:00:45]} Ba2 {[%emt 0:00:32]} 51. Ke4 {[%emt 0:00:30]} 0-1

[Event "ARM-ch Rapid 2019"]
[Site "Yerevan"]
[Date "2019.01.22"]
[Round "5.8"]
[White "Petrosian, Tigran L."]
[Black "Alaverdyan, Gevorg"]
[Result "0-1"]
[WhiteElo "2598"]
[BlackElo "2261"]
[PlyCount "118"]
[EventDate "2019.01.22"]
[EventType "tourn"]
[EventCountry "ARM"]
[TimeControl "40/5400+30:1800+30"]
[WhiteClock "0:00:52"]
[BlackClock "0:00:14"]

1. Nf3 {[%emt 1:15:12]} Nf6 {[%emt 1:15:12]} 2. g3 {[%emt 0:00:21]} g6 {[%emt 0:00:21]} 3. Bg2 {[%emt 0:00:29]} Bg7 {[%emt 0:00:21]} 4. d3 {[%emt 0:00:22]} O-O {[%emt 0:00:23]} 5. e4 {[%emt 0:00:21]} d6 {[%emt 0:00:29]} 6. O-O {[%emt 0:00:23]} c5 {[%emt 0:00:21]} 7. h3 {[%emt 0:00:23]} Nc6 {[%emt 0:00:22]} 8. a4 {[%emt 0:00:32]} a6 {[%emt 0:00:38]} 9. Nh4 {[%emt 0:00:35]} Bd7 {[%emt 0:00:35]} 10. f4 {[%emt 0:00:22]} b5 {[%emt 0:01:16]} 11. Nc3 {[%emt 0:00:32]} Rb8 {[%emt 0:00:53]} 12. axb5 {[%emt 0:00:23]} axb5 {[%emt 0:00:22]} 13. Ne2 {[%emt 0:01:09]} Ne8 {[%emt 0:00:39]} 14. Nf3 {[%emt 0:00:41]} Qb6 {[%emt 0:01:02]} 15. Kh1 {[%emt 0:00:24]} Nc7 {[%emt 0:00:26]} 16. f5 {[%emt 0:00:26]} Ra8 {[%emt 0:00:37]} 17. Rb1 {[%emt 0:00:46]} b4 {[%emt 0:01:12]} 18. Bg5 {[%emt 0:00:39]} Ra2 {[%emt 0:01:33]} 19. Qc1 {[%emt 0:00:22]} b3 {[%emt 0:00:37]} 20. c3 {[%emt 0:00:33]} Qa6 {[%emt 0:00:39]} 21. Qd2 {[%emt 0:00:35]} Rb8 {[%emt 0:00:55]} 22. g4 {[%emt 0:00:38]} Be8 {[%emt 0:01:00]} 23. Bh6 {[%emt 0:01:54]} Bh8 {[%emt 0:00:25]} 24. Nf4 {[%emt 0:01:37]} Ne5 {[%emt 0:01:24]} 25. Nxe5 {[%emt 0:00:30]} dxe5 {[%emt 0:01:22]} 26. Nd5 {[%emt 0:00:31]} Nxd5 {[%emt 0:00:23]} 27. exd5 {[%emt 0:00:21]} c4 {[%emt 0:00:27]} 28. dxc4 {[%emt 0:01:35]} Qxc4 {[%emt 0:00:23]} 29. Rbe1 {[%emt 0:00:26]} Rd8 {[%emt 0:00:34]} 30. Re4 {[%emt 0:04:29]} Qxd5 {[%emt 0:04:53]} 31. Qxd5 {[%emt 0:00:22]} Rxd5 {[%emt 0:00:21]} 32. Rb4 {[%emt 0:00:21]} Rd8 {[%emt 0:00:23]} 33. Rxb3 {[%emt 0:00:21]} e4 {[%emt 0:02:09]} 34. Bxe4 {[%emt 0:00:56]} Be5 {[%emt 0:00:22]} 35. Rb7 {[%emt 0:01:03]} f6 {[%emt 0:02:04]} 36. Kg1 {[%emt 0:05:55]} g5 {[%emt 0:02:30]} 37. Bb1 {[%emt 0:01:12]} Raa8 {[%emt 0:00:45]} 38. Rxe7 {[%emt 0:00:27]} Rd2 {[%emt 0:00:24]} 39. Be4 {[%emt 0:00:46]} Rad8 {[%emt 0:00:21]} 40. c4 {[%emt 0:00:51]} Bf7 {[%emt 0:00:27]} 41. b3 {[%emt 0:30:22]} Bh2+ {[%emt 0:30:26]} 42. Kh1 {[%emt 0:00:22]} Bd6 {[%emt 0:00:21]} 43. Rxf7 {[%emt 0:00:42]} Kxf7 {[%emt 0:00:21]} 44. Bd5+ {[%emt 0:00:23]} Ke7 {[%emt 0:00:49]} 45. Re1+ {[%emt 0:00:37]} Kd7 {[%emt 0:00:27]} 46. Bg7 {[%emt 0:00:29]} Rb8 {[%emt 0:00:34]} 47. Re3 {[%emt 0:00:36]} Bf4 {[%emt 0:00:23]} 48. Rf3 {[%emt 0:00:24]} Be5 {[%emt 0:00:22]} 49. Kg1 {[%emt 0:00:24]} Rb6 {[%emt 0:00:22]} 50. Kf1 {[%emt 0:00:40]} Ra6 {[%emt 0:00:23]} 51. Rf2 {[%emt 0:00:21]} Ra1+ {[%emt 0:00:28]} 52. Kg2 {[%emt 0:00:21]} Rd3 {[%emt 0:00:39]} 53. Bf3 {[%emt 0:00:49]} Rxb3 {[%emt 0:00:26]} 54. Bf8 {[%emt 0:00:24]} Kc7 {[%emt 0:00:35]} 55. c5 {[%emt 0:00:27]} Rbb1 {[%emt 0:00:24]} 56. Rd2 {[%emt 0:00:32]} Rg1+ {[%emt 0:01:03]} 57. Kf2 {[%emt 0:00:21]} Bg3+ {[%emt 0:00:22]} 58. Ke2 {[%emt 0:00:23]} Rge1+ {[%emt 0:00:21]} 59. Kd3 {[%emt 0:00:54]} Ra3+ {[%emt 0:00:22]} 0-1

[Event "ARM-ch Rapid 2019"]
[Site "Yerevan"]
[Date "2019.01.22"]
[Round "5.9"]
[White "Minasian, Artashes"]
[Black "Danielyan, Vahe"]
[Result "0-1"]
[WhiteElo "2472"]
[BlackElo "2186"]
[Annotator "RC"]
[PlyCount "105"]
[EventDate "2019.01.22"]
[EventType "tourn"]
[EventCountry "ARM"]
[TimeControl "40/5400+30:1800+30"]
[WhiteClock "0:00:24"]
[BlackClock "0:00:32"]

1. e4 {[%emt 1:15:13]} e5 {[%emt 1:15:11]} 2. Bc4 {[%emt 0:00:22]} Nc6 {[%emt 0:00:25]} 3. Nc3 {[%emt 0:00:30]} Nf6 {[%emt 0:00:22]} 4. d3 {[%emt 0:00:21]} Bc5 {[%emt 0:00:26]} 5. Bg5 {[%emt 0:00:54]} h6 {[%emt 0:00:37]} 6. Bh4 {[%emt 0:00:25]} d6 {[%emt 0:00:26]} 7. Nge2 {[%emt 0:00:33]} Be6 {[%emt 0:00:33]} 8. Bb3 {[%emt 0:01:27]} a6 {[%emt 0:00:48]} 9. Nd5 {[%emt 0:01:30]} Bxd5 {[%emt 0:01:33]} 10. exd5 {[%emt 0:00:25]} Na5 {[%emt 0:00:41]} 11. c3 {[%emt 0:00:57]} Nxb3 {[%emt 0:00:26]} 12. Qxb3 {[%emt 0:00:23]} Bb6 {[%emt 0:00:24]} 13. O-O-O {[%emt 0:00:49]} g5 {[%emt 0:00:39]} 14. Bg3 {[%emt 0:00:22]} Qd7 {[%emt 0:00:21]} 15. d4 {[%emt 0:00:35]} e4 {[%emt 0:00:30]} 16. c4 {[%emt 0:01:42]} O-O-O {[%emt 0:01:05]} 17. Kb1 {[%emt 0:01:17]} Qe7 {[%emt 0:00:59]} 18. Rhe1 {[%emt 0:00:36]} Ba5 {[%emt 0:00:49]} 19. Rf1 {[%emt 0:00:28]} Nd7 {[%emt 0:00:29]} 20. f4 {[%emt 0:01:57]} exf3 {[%emt 0:00:32]} 21. Qxf3 {[%emt 0:00:23]} f5 {[%emt 0:00:22]} 22. Nc1 {[%emt 0:01:00]} f4 {[%emt 0:00:36]} 23. Bf2 {[%emt 0:00:26]} Nf6 {[%emt 0:02:08]} 24. Nb3 {[%emt 0:00:26]} Bb6 {[%emt 0:00:21]} 25. Rfe1 {[%emt 0:00:24]} Qh7+ {[%emt 0:00:45]} 26. Kc1 {[%emt 0:02:02]} Rhe8 {[%emt 0:00:30]} 27. Re6 {[%emt 0:01:25]} Rxe6 {[%emt 0:00:48]} 28. dxe6 {[%emt 0:00:22]} Qf5 {[%emt 0:00:21]} 29. d5 {[%emt 0:01:02]} g4 {[%emt 0:00:50]} 30. Qe2 {[%emt 0:00:23]} f3 {[%emt 0:00:45]} 31. gxf3 {[%emt 0:00:25]} gxf3 {[%emt 0:00:23]} 32. Qe1 {[%emt 0:02:21]} Ne4 {[%emt 0:01:23]} 33. Bxb6 {[%emt 0:00:22]} cxb6 {[%emt 0:00:21]} 34. Qe3 {[%emt 0:00:28]} f2 {[%emt 0:02:12]} 35. Rf1 {[%emt 0:00:22]} Rg8 {[%emt 0:01:13]} 36. Nd4 {[%emt 0:00:44]} Qg4 {[%emt 0:00:57]} 37. Kc2 {[%emt 0:02:02]} h5 {[%emt 0:03:35]} 38. b3 {[%emt 0:01:42]} Qg2 {[%emt 0:01:30]} 39. Qe2 {[%emt 0:00:24]} Qh3 {[%emt 0:01:08]} 40. Qxe4 {[%emt 0:01:49]} Qxf1 {[%emt 0:00:26]} 41. e7 {[%emt 0:30:30]} Qe1 {[%emt 0:31:55]} 42. Qf5+ {[%emt 0:00:22]} Kb8 {[%emt 0:00:28]} 43. Qf8+ {[%emt 0:01:03]} Ka7 {[%emt 0:00:22]} 44. e8=Q {[%emt 0:00:34]} Qxe8 {[%emt 0:00:24]} 45. Qxf2 {[%emt 0:00:24]} Qe4+ {[%emt 0:00:31]} 46. Kc3 {[%emt 0:00:23]} Rg2 {[%emt 0:00:58]} 47. Nc6+ {[%emt 0:00:37]} bxc6 {[%emt 0:00:22]} 48. Qf7+ {[%emt 0:00:21]} Kb8 {[%emt 0:00:22]} 49. Qf8+ {[%emt 0:00:39]} Kc7 {[%emt 0:00:23]} 50. Qf7+ {[%emt 0:00:25]} Kd8 {[%emt 0:01:00]} 51. Qf8+ {[%emt 0:00:26]} Qe8 {[%emt 0:00:34]} 52. Qxd6+ {[%emt 0:00:26]} Kc8 {[%emt 0:00:27]} 53. Kd4 0-1

[Event "ARM-ch Rapid 2019"]
[Site "Yerevan"]
[Date "2019.01.23"]
[Round "6.1"]
[White "Hovhannisyan, Robert"]
[Black "Andriasian, Zaven"]
[Result "0-1"]
[WhiteElo "2637"]
[BlackElo "2604"]
[Annotator "RC"]
[PlyCount "108"]
[EventDate "2019.01.22"]
[EventType "tourn"]
[EventCountry "ARM"]
[TimeControl "40/5400+30:1800+30"]
[WhiteClock "0:01:57"]
[BlackClock "0:00:21"]

1. e4 {[%emt 1:15:12]} c5 {[%emt 1:15:11]} 2. Nf3 {[%emt 0:00:22]} d6 {[%emt 0:00:20]} 3. d4 {[%emt 0:00:21]} cxd4 {[%emt 0:00:22]} 4. Nxd4 {[%emt 0:00:22]} Nf6 {[%emt 0:00:21]} 5. Nc3 {[%emt 0:00:21]} a6 {[%emt 0:00:21]} 6. Be2 {[%emt 0:00:22]} e5 {[%emt 0:00:22]} 7. Nf3 {[%emt 0:00:22]} h6 {[%emt 0:00:23]} 8. Nd2 {[%emt 0:00:24]} Be7 {[%emt 0:00:24]} 9. Nc4 {[%emt 0:00:35]} b5 {[%emt 0:01:38]} 10. Ne3 {[%emt 0:00:22]} Bb7 {[%emt 0:00:22]} 11. Ncd5 {[%emt 0:00:57]} Nxd5 {[%emt 0:01:46]} 12. Nxd5 {[%emt 0:00:23]} Nd7 {[%emt 0:00:29]} 13. a4 {[%emt 0:01:52]} bxa4 {[%emt 0:00:38]} 14. O-O {[%emt 0:00:45]} O-O {[%emt 0:00:31]} 15. Be3 {[%emt 0:02:08]} Bg5 {[%emt 0:00:48]} 16. Bxg5 {[%emt 0:01:16]} hxg5 {[%emt 0:00:33]} 17. Rxa4 {[%emt 0:00:22]} Bxd5 {[%emt 0:00:32]} 18. exd5 {[%emt 0:00:22]} Nc5 {[%emt 0:00:33]} 19. Ra3 {[%emt 0:00:37]} a5 {[%emt 0:00:23]} 20. Bb5 {[%emt 0:00:34]} g6 {[%emt 0:00:51]} 21. Qd2 {[%emt 0:00:32]} Kg7 {[%emt 0:01:23]} 22. Rfa1 {[%emt 0:00:39]} g4 {[%emt 0:04:08]} 23. Rxa5 {[%emt 0:01:26]} Rxa5 {[%emt 0:01:35]} 24. Qxa5 {[%emt 0:00:49]} Qh4 {[%emt 0:00:45]} 25. g3 {[%emt 0:04:14]} Qh6 {[%emt 0:00:21]} 26. Qb6 {[%emt 0:01:41]} Rh8 {[%emt 0:02:15]} 27. h4 {[%emt 0:00:22]} g5 {[%emt 0:00:21]} 28. Ra7 {[%emt 0:03:27]} gxh4 {[%emt 0:00:32]} 29. Qc7 {[%emt 0:00:46]} Qf6 {[%emt 0:01:24]} 30. Qe7 {[%emt 0:00:44]} Qxe7 {[%emt 0:02:05]} 31. Rxe7 {[%emt 0:00:21]} h3 {[%emt 0:00:23]} 32. Kh2 {[%emt 0:02:28]} Rb8 {[%emt 0:00:22]} 33. c4 {[%emt 0:00:32]} Ra8 {[%emt 0:00:21]} 34. Rc7 {[%emt 0:00:43]} Ne4 {[%emt 0:00:35]} 35. Bd7 {[%emt 0:00:29]} Nxf2 {[%emt 0:00:24]} 36. Be6 {[%emt 0:00:21]} Rf8 {[%emt 0:00:42]} 37. b4 {[%emt 0:00:41]} e4 {[%emt 0:01:06]} 38. c5 {[%emt 0:00:33]} e3 {[%emt 0:00:21]} 39. Re7 {[%emt 0:00:26]} Kf6 {[%emt 0:01:25]} 40. cxd6 {[%emt 0:00:22]} fxe6 {[%emt 0:00:30]} 41. Rxe6+ {[%emt 0:30:22]} Kf5 {[%emt 0:30:22]} 42. Rxe3 {[%emt 0:00:43]} Ne4 {[%emt 0:00:23]} 43. Re1 {[%emt 0:00:39]} Rd8 {[%emt 0:00:42]} 44. Rf1+ {[%emt 0:00:22]} Ke5 {[%emt 0:00:21]} 45. Rf4 {[%emt 0:00:26]} Nf6 {[%emt 0:00:22]} 46. b5 {[%emt 0:00:31]} Rxd6 {[%emt 0:00:24]} 47. Rb4 {[%emt 0:00:26]} Rb6 {[%emt 0:00:27]} 48. Rb1 {[%emt 0:00:44]} Kxd5 {[%emt 0:00:42]} 49. Rd1+ {[%emt 0:00:29]} Ke5 {[%emt 0:00:24]} 50. Rb1 {[%emt 0:00:24]} Ne4 {[%emt 0:00:36]} 51. Rb4 {[%emt 0:00:30]} Rf6 {[%emt 0:00:40]} 52. Kg1 {[%emt 0:00:28]} Rf3 {[%emt 0:00:43]} 53. Rb2 {[%emt 0:00:38]} Rxg3+ {[%emt 0:00:36]} 54. Kh1 {[%emt 0:00:22]} Rg2 {[%emt 0:00:35]} 0-1